fUSD/lending_fUSD_20260203
["ID","MTS","AMOUNT","RATE_DAILY","PERIOD"]
[404396579,1770101444293,-500.0,0.00017996,4]
[404396580,1770101444303,-1481.23780761,0.00017996,4]
[404396581,1770101444313,-578.20924308,0.00017996,4]
[404396582,1770101444323,-500.0,0.00017996,4]
[404396583,1770101444333,-500.0,0.00017996,4]
[404396584,1770101444343,-1536.04360649,0.00017996,4]
[404396585,1770101444353,-599.60298507,0.00017996,4]
[404396586,1770101444363,-500.0,0.00017996,4]
[404396587,1770101444373,-500.0,0.00017996,4]
[404396588,1770101444384,-1592.87721993,0.00017996,4]
[404396590,1770101444393,-621.78829552,0.00017996,4]
[404396592,1770101444406,-500.0,0.00017996,4]
[404396594,1770101444416,-500.0,0.00017996,4]
[404396596,1770101444425,-500.0,0.00017996,4]
[404396598,1770101444435,-644.79446246,0.00017996,4]
[404396600,1770101444444,-500.0,0.00017996,4]
[404396602,1770101444454,-668.65185757,0.00017996,4]
[404396604,1770101444466,-500.0,0.00017996,4]
[404396606,1770101444476,-500.0,0.00017996,4]
[404396608,1770101444486,-693.3919763,0.00017996,4]
[404396609,1770101444496,-500.0,0.00017996,4]
[404396610,1770101444505,-500.0,0.00017996,4]
[404396611,1770101444515,-719.04747942,0.00017996,4]
[404396612,1770101444525,-500.0,0.00017996,4]
[404396613,1770101444535,-500.0,0.00017996,4]
[404396614,1770101444544,-500.0,0.00017996,4]
[404396615,1770101444553,-745.65223616,0.00017996,4]
[404396616,1770101444563,-500.0,0.00017996,4]
[404396617,1770101444572,-500.0,0.00017996,4]
[404396618,1770101444581,-773.2413689,0.00017996,4]
[404396619,1770101444591,-500.0,0.00017996,4]
[404396620,1770101444601,-174.61919141,0.00017996,4]
[404396621,1770101444611,-500.0,0.00017996,4]
[404396622,1770101444620,-801.85129955,0.00017996,4]
[404396623,1770101444630,-500.0,0.00017996,4]
[404396624,1770101444639,-181.08010149,0.00017996,4]
[404396625,1770101444649,-209.40437684,0.00017996,4]
[404396626,1770101444658,-500.0,0.00017996,4]
[404396627,1770101444668,-831.51979763,0.00017996,4]
[404396628,1770101444678,-187.78006525,0.00017996,4]
[404396629,1770101444687,-354.84887414,0.00017996,4]
[404396630,1770101444697,-862.28603014,0.00017996,4]
[404396631,1770101444707,-194.72792766,0.00017996,4]
[404396632,1770101444717,-201.93286099,0.00017996,4]
[404396633,1770101444727,-894.19061326,0.00017996,4]
[404396634,1770101444736,-927.27566595,0.00017996,4]
[404396635,1770101444746,-209.40437684,0.00017996,4]
[404396636,1770101444756,-961.58486559,0.00017996,4]
[404396637,1770101444769,-217.15233878,0.00017996,4]
[404396638,1770101444779,-997.16350561,0.00017996,4]
[404396639,1770101444789,-225.18697532,0.00017996,4]
[404396640,1770101444799,-233.51889341,0.00017996,4]
[404396641,1770101444809,-500.0,0.00017996,4]
[404396642,1770101444819,-242.15909246,0.00017996,4]
[404396643,1770101444829,-500.0,0.00017996,4]
[404396644,1770101444840,-500.0,0.00017996,4]
[404396645,1770101444849,-251.11897888,0.00017996,4]
[404396646,1770101444859,-500.0,0.00017996,4]
[404396647,1770101444869,-500.0,0.00017996,4]
[404396648,1770101444878,-260.4103811,0.00017996,4]
[404396649,1770101444887,-270.0455652,0.00017996,4]
[404396650,1770101444897,-500.0,0.00017996,4]
[404396651,1770101444907,-500.0,0.00017996,4]
[404396652,1770101444916,-280.03725112,0.00017996,4]
[404396653,1770101444925,-500.0,0.00017996,4]
[404396654,1770101444934,-500.0,0.00017996,4]
[404396655,1770101444944,-500.0,0.00017996,4]
[404396656,1770101444953,-290.39862941,0.00017996,4]
[404396657,1770101444963,-500.0,0.00017996,4]
[404396658,1770101444973,-301.1433787,0.00017996,4]
[404396659,1770101444982,-500.0,0.00017996,4]
[404396660,1770101444992,-500.0,0.00017996,4]
[404396661,1770101445002,-500.0,0.00017996,4]
[404396662,1770101445011,-151.0,0.00017996,4]
[404396663,1770101445022,-500.0,0.00017996,4]
[404396664,1770101445031,-721.12765535,0.00017996,4]
[404396665,1770101445041,-747.8093786,0.00017996,4]
[404396666,1770101445051,-775.47832561,0.00017996,4]
[404396667,1770101445060,-322.6107,0.00017996,4]
[404396668,1770101445070,-334.5472959,0.00017996,4]
[404396669,1770101445086,-804.17102365,0.00017996,4]
[404396670,1770101445101,-500.0,0.00017996,4]
[404396671,1770101445114,-151.0,0.00017996,4]
[404396672,1770101445125,-346.92554585,0.00017996,4]
[404396673,1770101445137,-833.92535153,0.00017996,4]
[404396674,1770101445150,-151.0,0.00017996,4]
[404396675,1770101445163,-359.76179104,0.00017996,4]
[404396676,1770101445176,-151.0,0.00017996,4]
[404396677,1770101445189,-263.99350842,0.00017996,4]
[404396678,1770101445203,-864.78058953,0.00017996,4]
[404396679,1770101445215,-373.07297731,0.00017996,4]
[404396680,1770101445228,-151.0,0.00017996,4]
[404396681,1770101445239,-896.77747135,0.00017996,4]
[404396682,1770101445250,-386.87667747,0.00017996,4]
[404396683,1770101445264,-151.0,0.00017996,4]
[404396684,1770101445278,-929.95823779,0.00017996,4]
[404396685,1770101445290,-401.19111454,0.00017996,4]
[404396686,1770101445303,-151.0,0.00017996,4]
[404396687,1770101445316,-964.36669259,0.00017996,4]
[404396688,1770101445329,-416.03518578,0.00017996,4]
[404396689,1770101445343,-151.0,0.00017996,4]
[404396690,1770101445356,-1000.04826021,0.00017996,4]
[404396691,1770101445368,-431.42848765,0.00017996,4]
[404396692,1770101445381,-1037.05004584,0.00017996,4]
[404396693,1770101445395,-151.0,0.00017996,4]
[404396694,1770101445407,-447.3913417,0.00017996,4]
[404396695,1770101445420,-151.0,0.00017996,4]
[404396696,1770101445433,-463.94482134,0.00017996,4]
[404396697,1770101445445,-151.0,0.00017996,4]
[404396698,1770101445456,-481.11077973,0.00017996,4]
[404396699,1770101445471,-498.91187858,0.00017996,4]
[404396700,1770101445484,-517.37161808,0.00017996,4]
[404396701,1770101445500,-536.51436795,0.00017996,4]
[404396702,1770101445512,-556.36539957,0.00017996,4]
[404396703,1770101445524,-576.95091935,0.00017996,4]
[404396704,1770101445536,-598.29810337,0.00017996,4]
[404396705,1770101445547,-209.40437684,0.00017996,4]
[404396706,1770101445557,-217.15233878,0.00017996,4]
[404396707,1770101445568,-225.18697532,0.00017996,4]
[404396708,1770101445581,-233.51889341,0.00017996,4]
[404396709,1770101445596,-242.15909246,0.00017996,4]
[404396710,1770101445606,-251.11897888,0.00017996,4]
[404396711,1770101445617,-260.4103811,0.00017996,4]
[404396712,1770101445627,-270.0455652,0.00017996,4]
[404396713,1770101445637,-280.03725112,0.00017996,4]
[404396714,1770101445649,-290.39862941,0.00017996,4]
[404396715,1770101445662,-301.1433787,0.00017996,4]
[404396716,1770101445674,-151.0,0.00017996,4]
[404396717,1770101445684,-151.0,0.00017996,4]
[404396718,1770101445695,-151.0,0.00017996,4]
[404396719,1770101445705,-151.0,0.00017996,4]
[404396720,1770101445718,-151.0,0.00017996,4]
[404396721,1770101445730,-151.0,0.00017996,4]
[404396722,1770101445742,-151.0,0.00017996,4]
[404396723,1770101445753,-151.0,0.00017996,4]
[404396724,1770101445766,-151.0,0.00017996,4]
[404396725,1770101445780,-151.0,0.00017996,4]
[404396726,1770101445792,-151.0,0.00017996,4]
[404396727,1770101445803,-151.0,0.00017996,4]
[404396728,1770101445817,-198.0946271,0.00017996,4]
[404396729,1770101445828,-151.0,0.00017997,2]
[404396730,1770101445841,-155.787,0.00017999,2]
[404396731,1770101445853,-300.0,0.00017999,2]
[404396732,1770101445865,-300.0,0.00017999,2]
[404396733,1770101445876,-300.0,0.00017999,2]
[404396734,1770101445887,-666.0,0.00017999,2]
[404396735,1770101445899,-300.0,0.00017999,2]
[404396736,1770101445910,-24812.40913486,0.00018,2]
[404396737,1770101445948,-7285451.14160966,0.00018,2]
[404396738,1770101445961,-200.45095346,0.00018,2]
[404396739,1770101445973,-2000.88772904,0.00018,2]
[404396740,1770101445984,-401.0,0.00018,2]
[404396741,1770101445996,-401.0,0.00018,2]
[404396742,1770101446008,-401.0,0.00018,2]
[404396743,1770101446019,-401.0,0.00018,2]
[404396744,1770101446031,-401.0,0.00018,2]
[404396745,1770101446042,-401.0,0.00018,2]
[404396746,1770101446054,-401.0,0.00018,2]
[404396747,1770101446065,-401.0,0.00018,2]
[404396748,1770101446077,-535.99630296,0.00018,2]
[404396749,1770101446088,-151.0,0.00018,2]
[404396750,1770101446099,-241.46,0.00018,7]
[404396751,1770101446110,-136643.52468993,0.00018,2]
[404396755,1770101446669,-150.01402542,0.0001,2]
[404396756,1770101446680,-500.0,0.00011828,2]
[404396757,1770101446691,-150.01402542,0.00012314,2]
[404396758,1770101446702,-150.01402542,0.00015784,2]
[404396759,1770101446715,-2564.85023127,0.00018,2]
[404396771,1770101446903,-14914.06547665,0.00018,2]
[404396772,1770101446931,-151.0,0.00012322,2]
[404396773,1770101446943,-7012.79308622,0.00018,2]
[404396774,1770101446955,-1141.6,0.00018,2]
[404396775,1770101446973,-2291.27590261,0.00018,2]
[404396777,1770101446986,-362.84828034,0.00018,2]
[404396960,1770101457241,1181.767065,8.178e-05,2]
[404396961,1770101491714,250.0,0.00018,20]
[404396962,1770101492006,250.0,0.00018,20]
[404396963,1770101492544,250.0,0.00018,20]
[404396964,1770101492597,242.406,8.418e-05,2]
[404396965,1770101492680,2942.677,8.418e-05,2]
[404396966,1770101492721,39.16117496,0.00018,20]
[404396967,1770101513033,265.0,8.487e-05,2]
[404396968,1770101534582,10000.01,8.49e-05,2]
[404396969,1770101534614,10000.01,8.49e-05,2]
[404396970,1770101534649,10000.01,8.49e-05,2]
[404396971,1770101534682,10000.01,8.49e-05,2]
[404396972,1770101534712,10000.01,8.49e-05,2]
[404396973,1770101534744,10000.01,8.49e-05,2]
[404396974,1770101534775,10000.01,8.49e-05,2]
[404396975,1770101534806,10000.01,8.49e-05,2]
[404396976,1770101534839,10000.01,8.49e-05,2]
[404396977,1770101534870,10000.01,8.49e-05,2]
[404396978,1770101544203,-3553.242935,8.49e-05,2]
[404396979,1770101544417,-5000.01,8.49e-05,2]
[404396980,1770101544794,-5000.01,8.49e-05,2]
[404396981,1770101544811,-5000.01,8.49e-05,2]
[404396982,1770101544853,-5000.01,8.49e-05,2]
[404396983,1770101544899,-5000.01,8.49e-05,2]
[404396984,1770101545027,-5000.01,8.49e-05,2]
[404396985,1770101545139,-5000.01,8.49e-05,2]
[404396986,1770101545268,-5000.01,8.49e-05,2]
[404396987,1770101550097,-5000.01,8.49e-05,2]
[404396988,1770101550279,-5000.01,8.49e-05,2]
[404396989,1770101553225,-208.06124495,8.489e-05,2]
[404396990,1770101553257,-158.1393897,8.489e-05,2]
[404396991,1770101553287,-500.0,8.489e-05,2]
[404396992,1770101553317,-500.0,8.489e-05,2]
[404396993,1770101553346,-161.54688299,8.489e-05,2]
[404396994,1770101554053,-1798.43196472,8.49e-05,2]
[404396995,1770101554079,-10000.01,8.49e-05,2]
[404396996,1770101554160,-10000.01,8.49e-05,2]
[404396997,1770101554184,-10000.01,8.49e-05,2]
[404396998,1770101554208,-5000.01,8.49e-05,2]
[404396999,1770101554235,-10000.01,8.49e-05,2]
[404397000,1770101554250,-5000.01,8.49e-05,2]
[404397001,1770101554270,-10000.01,8.49e-05,2]
[404397002,1770101554288,-5000.01,8.49e-05,2]
[404397003,1770101554311,-10000.01,8.49e-05,2]
[404397004,1770101554326,-5000.01,8.49e-05,2]
[404397005,1770101554341,-10000.01,8.49e-05,2]
[404397006,1770101554356,-10000.01,8.49e-05,2]
[404397007,1770101554378,-10000.01,8.49e-05,2]
[404397008,1770101557621,-500.0,8.489e-05,2]
[404397009,1770101557654,-500.0,8.489e-05,2]
[404397010,1770101557686,-500.0,8.489e-05,2]
[404397011,1770101557720,-500.0,8.489e-05,2]
[404397012,1770101557759,-468.04054525,8.489e-05,2]
[404397013,1770101558142,-63.9289095,8.489e-05,2]
[404397014,1770101558210,-500.0,8.489e-05,2]
[404397015,1770101558250,-500.0,8.489e-05,2]
[404397016,1770101558288,-500.0,8.489e-05,2]
[404397017,1770101558324,-500.0,8.489e-05,2]
[404397018,1770101558356,-500.0,8.489e-05,2]
[404397019,1770101558565,-0.01,8.49e-05,2]
[404397020,1770101558591,-5000.01,8.49e-05,2]
[404397021,1770101559101,-5000.01,8.49e-05,2]
[404397022,1770101559241,-5000.01,8.49e-05,2]
[404397023,1770101559352,-5000.01,8.49e-05,2]
[404397024,1770101559624,-5000.01,8.49e-05,2]
[404397025,1770101559742,-5000.01,8.49e-05,2]
[404397026,1770101562006,-10000.01,8.49e-05,2]
[404397027,1770101562171,-10000.01,8.49e-05,2]
[404397028,1770101562333,-10000.01,8.49e-05,2]
[404397029,1770101562506,-10000.01,8.49e-05,2]
[404397030,1770101562617,-10000.01,8.49e-05,2]
[404397031,1770101562765,-10000.01,8.49e-05,2]
[404397032,1770101562909,-10000.01,8.49e-05,2]
[404397033,1770101563051,-10000.01,8.49e-05,2]
[404397034,1770101563158,-10000.01,8.49e-05,2]
[404397035,1770101563279,-10000.01,8.49e-05,2]
[404397036,1770101565167,-5000.01,8.49e-05,2]
[404397037,1770101565296,-5000.01,8.49e-05,2]
[404397038,1770101565451,-5000.01,8.49e-05,2]
[404397039,1770101565562,-5000.01,8.49e-05,2]
[404397040,1770101568535,-10000.01,8.49e-05,2]
[404397041,1770101568572,-10000.01,8.49e-05,2]
[404397042,1770101568703,-10000.01,8.49e-05,2]
[404397043,1770101568854,-10000.01,8.49e-05,2]
[404397044,1770101569015,-10000.01,8.49e-05,2]
[404397045,1770101569136,-10000.01,8.49e-05,2]
[404397046,1770101569289,-10000.01,8.49e-05,2]
[404397047,1770101569410,-10000.01,8.49e-05,2]
[404397048,1770101569564,-10000.01,8.49e-05,2]
[404397049,1770101569700,-10000.01,8.49e-05,2]
[404397050,1770101571194,-5000.01,8.49e-05,2]
[404397051,1770101571310,-5000.01,8.49e-05,2]
[404397052,1770101571417,-5000.01,8.49e-05,2]
[404397053,1770101571543,-5000.01,8.49e-05,2]
[404397054,1770101574292,-5000.01,8.49e-05,2]
[404397055,1770101577461,-5000.01,8.49e-05,2]
[404397056,1770101577506,-5000.01,8.49e-05,2]
[404397057,1770101577521,-10000.01,8.49e-05,2]
[404397058,1770101577546,-5000.01,8.49e-05,2]
[404397059,1770101577571,-10000.01,8.49e-05,2]
[404397060,1770101577638,-5000.01,8.49e-05,2]
[404397061,1770101577696,-10000.01,8.49e-05,2]
[404397062,1770101577839,-10000.01,8.49e-05,2]
[404397063,1770101577964,-10000.01,8.49e-05,2]
[404397064,1770101578087,-10000.01,8.49e-05,2]
[404397065,1770101578893,-10000.01,8.49e-05,2]
[404397066,1770101578999,-10000.01,8.49e-05,2]
[404397067,1770101579118,-10000.01,8.49e-05,2]
[404397068,1770101579260,-10000.01,8.49e-05,2]
[404397069,1770101580223,-5000.01,8.49e-05,2]
[404397070,1770101580374,-5000.01,8.49e-05,2]
[404397071,1770101583585,-300.0,8.489e-05,2]
[404397072,1770101583623,-9400.01,8.49e-05,2]
[404397073,1770101583705,-10000.01,8.49e-05,2]
[404397074,1770101583835,-10000.01,8.49e-05,2]
[404397075,1770101583947,-10000.01,8.49e-05,2]
[404397077,1770101584076,-10000.01,8.49e-05,2]
[404397078,1770101584199,-10000.01,8.49e-05,2]
[404397079,1770101584315,-10000.01,8.49e-05,2]
[404397080,1770101584434,-10000.01,8.49e-05,2]
[404397081,1770101584564,-10000.01,8.49e-05,2]
[404397082,1770101584692,-10000.01,8.49e-05,2]
[404397083,1770101586426,2800.0,7.7e-05,2]
[404397084,1770101587970,2200.01,7.945e-05,2]
[404397085,1770101587992,5000.01,7.945e-05,2]
[404397086,1770101588014,5000.01,7.945e-05,2]
[404397087,1770101588037,5000.01,7.945e-05,2]
[404397088,1770101588059,2800.0,7.945e-05,2]
[404397089,1770101588522,2200.01,7.8e-05,2]
[404397090,1770101588546,3399.99,7.8e-05,2]
[404397091,1770101590602,1600.02,7.9e-05,2]
[404397092,1770101590626,5000.01,7.9e-05,2]
[404397093,1770101590648,1799.97,7.9e-05,2]
[404397094,1770101592689,3200.04,8e-05,2]
[404397095,1770101592712,5000.01,8e-05,2]
[404397096,1770101592735,2999.95,8e-05,2]
[404397097,1770101593893,-524.4478525,8.489e-05,2]
[404397098,1770101593924,-250.0,8.49e-05,2]
[404397099,1770101593987,-8451.114295,8.49e-05,2]
[404397100,1770101594021,-10000.01,8.49e-05,2]
[404397101,1770101594202,-10000.01,8.49e-05,2]
[404397102,1770101594507,-10000.01,8.49e-05,2]
[404397103,1770101594615,-10000.01,8.49e-05,2]
[404397104,1770101594738,-10000.01,8.49e-05,2]
[404397105,1770101594787,14000.0,9e-05,3]
[404397106,1770101594858,-10000.01,8.49e-05,2]
[404397107,1770101594992,-10000.01,8.49e-05,2]
[404397108,1770101595117,-10000.01,8.49e-05,2]
[404397109,1770101595237,-10000.01,8.49e-05,2]
[404397110,1770101598456,-670.717096,8.178e-05,2]
[404397111,1770101612860,-1200.0,8.489e-05,2]
[404397112,1770101612893,-511.16306291,8.489e-05,2]
[404397113,1770101612922,-482.883945,8.49e-05,2]
[404397114,1770101612951,-1489.12501748,8.49e-05,2]
[404397115,1770101612987,-1295.55901454,8.49e-05,2]
[404397116,1770101613088,-42.54792014,8.49e-05,2]
[404397117,1770101613122,-174.48261702,8.49e-05,2]
[404397118,1770101613174,-9651.04476596,8.49e-05,2]
[404397119,1770101613208,-10000.01,8.49e-05,2]
[404397120,1770101613318,-10000.01,8.49e-05,2]
[404397121,1770101613444,-10000.01,8.49e-05,2]
[404397122,1770101613585,-10000.01,8.49e-05,2]
[404397123,1770101613819,-357.81414404,8.489e-05,2]
[404397124,1770101613877,-9284.38171192,8.49e-05,2]
[404397125,1770101613925,-10000.01,8.49e-05,2]
[404397126,1770101614054,-10000.01,8.49e-05,2]
[404397127,1770101626733,-10000.01,8.48e-05,2]
[404397128,1770101626875,-10000.01,8.48e-05,2]
[404397129,1770101627002,-10000.01,8.48e-05,2]
[404397130,1770101627136,-10000.01,8.48e-05,2]
[404397131,1770101627254,-10000.01,8.48e-05,2]
[404397132,1770101627371,-10000.01,8.48e-05,2]
[404397133,1770101627506,-426.18282243,8.48e-05,2]
[404397134,1770101627532,-9147.64435514,8.48e-05,2]
[404397135,1770101627619,-10000.01,8.49e-05,2]
[404397136,1770101627731,-10000.01,8.49e-05,2]
[404397137,1770101628219,1700.0,7.7e-05,2]
[404397138,1770101630286,3400.0,7.8e-05,2]
[404397139,1770101632369,1600.01,7.9e-05,2]
[404397140,1770101632394,3599.99,7.9e-05,2]
[404397141,1770101634463,1400.02,8e-05,2]
[404397142,1770101634494,5000.01,8e-05,2]
[404397143,1770101634523,499.97,8e-05,2]
[404397144,1770101640866,-10000.01,8.489e-05,2]
[404397145,1770101641002,-10000.01,8.489e-05,2]
[404397146,1770101641440,-10000.01,8.489e-05,2]
[404397147,1770101641480,-10000.01,8.489e-05,2]
[404397148,1770101641505,-10000.01,8.489e-05,2]
[404397149,1770101641540,-10000.01,8.489e-05,2]
[404397150,1770101641688,-10000.01,8.489e-05,2]
[404397151,1770101641927,-150.0,8.488e-05,2]
[404397152,1770101641936,-9850.01,8.489e-05,2]
[404397153,1770101642043,-300.0,8.488e-05,2]
[404397154,1770101642071,-300.0,8.488e-05,2]
[404397155,1770101642133,-8800.01,8.489e-05,2]
[404397156,1770101642168,-10000.01,8.489e-05,2]
[404397157,1770101647465,4500.04,7.945e-05,2]
[404397158,1770101647490,854.558676,7.945e-05,2]
[404397159,1770101657427,-10000.01,8.489e-05,2]
[404397160,1770101657656,-10000.01,8.489e-05,2]
[404397161,1770101657838,-10000.01,8.489e-05,2]
[404397162,1770101657943,-10000.01,8.489e-05,2]
[404397163,1770101658059,-10000.01,8.489e-05,2]
[404397164,1770101658169,-10000.01,8.489e-05,2]
[404397165,1770101660987,-10000.01,8.489e-05,2]
[404397166,1770101661099,-10000.01,8.489e-05,2]
[404397167,1770101661213,-10000.01,8.489e-05,2]
[404397168,1770101672291,-3498.588758,8.178e-05,2]
[404397169,1770101672315,-3002.832484,8.178e-05,2]
[404397170,1770101672397,-10000.01,8.489e-05,2]
[404397171,1770101672783,-10000.01,8.489e-05,2]
[404397172,1770101672808,-10000.01,8.489e-05,2]
[404397173,1770101672837,-10000.01,8.489e-05,2]
[404397174,1770101672912,-10000.01,8.489e-05,2]
[404397175,1770101673049,-10000.01,8.489e-05,2]
[404397176,1770101673165,-10000.01,8.489e-05,2]
[404397177,1770101673289,-10000.01,8.489e-05,2]
[404397178,1770101690327,-10000.01,8.489e-05,2]
[404397179,1770101690450,-10000.01,8.489e-05,2]
[404397180,1770101690604,-10000.01,8.489e-05,2]
[404397181,1770101690732,-10000.01,8.489e-05,2]
[404397182,1770101690869,-10000.01,8.489e-05,2]
[404397183,1770101691128,-10000.01,8.489e-05,2]
[404397184,1770101691275,-10000.01,8.489e-05,2]
[404397185,1770101691406,-10000.01,8.489e-05,2]
[404397186,1770101691527,-10000.01,8.489e-05,2]
[404397187,1770101693600,-10000.01,8.489e-05,2]
[404397188,1770101696512,-10000.01,8.489e-05,2]
[404397189,1770101696723,-10000.01,8.489e-05,2]
[404397190,1770101696839,-10000.01,8.489e-05,2]
[404397191,1770101696948,-10000.01,8.489e-05,2]
[404397192,1770101697082,-10000.01,8.489e-05,2]
[404397193,1770101697203,-10000.01,8.489e-05,2]
[404397194,1770101699486,-10000.01,8.489e-05,2]
[404397195,1770101699643,-10000.01,8.489e-05,2]
[404397196,1770101702326,185.29,7.806e-05,2]
[404397197,1770101708307,2350.185783,7.945e-05,2]
[404397198,1770101708625,-300.0,8.488e-05,2]
[404397199,1770101708657,-1200.0,8.488e-05,2]
[404397200,1770101708687,-300.0,8.488e-05,2]
[404397201,1770101708760,-6400.01,8.489e-05,2]
[404397202,1770101708787,-10000.01,8.489e-05,2]
[404397203,1770101708847,-10000.01,8.489e-05,2]
[404397204,1770101708974,-10000.01,8.489e-05,2]
[404397205,1770101709161,-10000.01,8.489e-05,2]
[404397206,1770101709294,-10000.01,8.489e-05,2]
[404397207,1770101733477,5000.0,7.6e-05,2]
[404397208,1770101735575,5000.01,7.7e-05,2]
[404397209,1770101735599,4999.99,7.7e-05,2]
[404397210,1770101737669,5000.02,7.8e-05,2]
[404397211,1770101737693,9999.98,7.8e-05,2]
[404397212,1770101739759,0.03,7.9e-05,2]
[404397213,1770101739782,10000.01,7.9e-05,2]
[404397214,1770101739806,9999.96,7.9e-05,2]
[404397215,1770101741841,0.05,8e-05,2]
[404397216,1770101741865,10000.01,8e-05,2]
[404397217,1770101741891,10000.01,8e-05,2]
[404397218,1770101741915,4999.93,8e-05,2]
[404397219,1770101743937,5000.0,9e-05,3]
[404397220,1770101745486,4374.683372,8.178e-05,2]
[404397221,1770101799589,172.0,6.3e-07,2]
[404397222,1770101873534,-4828.08,8.384e-05,2]
[404397223,1770101873648,-10000.01,8.384e-05,2]
[404397224,1770101877434,-10000.01,8.384e-05,2]
[404397225,1770101877621,-10000.01,8.384e-05,2]
[404397226,1770101877768,-10000.01,8.384e-05,2]
[404397227,1770101877877,-10000.01,8.384e-05,2]
[404397228,1770101877992,-10000.01,8.384e-05,2]
[404397229,1770101878102,-10000.01,8.384e-05,2]
[404397230,1770101878233,-10000.01,8.384e-05,2]
[404397231,1770101878347,-10000.01,8.384e-05,2]
[404397232,1770101880545,-10000.01,8.384e-05,2]
[404397233,1770101883435,600.0,7.5e-05,2]
[404397234,1770101883749,-743.24,8.219e-05,2]
[404397235,1770101883795,-8513.53,8.384e-05,2]
[404397236,1770101883970,-10000.01,8.384e-05,2]
[404397237,1770101884092,-10000.01,8.384e-05,2]
[404397238,1770101885534,1200.0,7.6e-05,2]
[404397239,1770101886583,-10000.01,8.384e-05,2]
[404397240,1770101887796,1900.0,7.7e-05,2]
[404397241,1770101891399,1300.01,7.8e-05,2]
[404397242,1770101891422,1199.99,7.8e-05,2]
[404397243,1770101891874,-10000.01,8.384e-05,2]
[404397244,1770101891988,-10000.01,8.384e-05,2]
[404397245,1770101892094,-10000.01,8.384e-05,2]
[404397246,1770101893511,3200.0,7.9e-05,2]
[404397247,1770101895608,600.0,8e-05,2]
[404397248,1770101926578,500.0,7.742e-05,3]
[404397249,1770102014728,1876.03,7.702e-05,2]
[404397250,1770102045433,10000.01,8.283e-05,2]
[404397251,1770102045459,10000.01,8.283e-05,2]
[404397252,1770102045485,10000.01,8.283e-05,2]
[404397253,1770102045511,10000.01,8.283e-05,2]
[404397254,1770102045537,10000.01,8.283e-05,2]
[404397255,1770102045562,10000.01,8.283e-05,2]
[404397256,1770102045587,10000.01,8.283e-05,2]
[404397257,1770102045611,10000.01,8.283e-05,2]
[404397258,1770102045636,9306.4531,8.283e-05,2]
[404397269,1770102116088,693.5569,8.219e-05,2]
[404397270,1770102116118,306.4431,8.219e-05,2]
[404397271,1770102158238,877.35,7.732e-05,2]
[404397272,1770102159047,8816.2169,8.283e-05,2]
[404397273,1770102159079,10000.01,8.283e-05,2]
[404397274,1770102159108,10000.01,8.283e-05,2]
[404397275,1770102159139,10000.01,8.283e-05,2]
[404397276,1770102159168,10000.01,8.283e-05,2]
[404397277,1770102159197,10000.01,8.283e-05,2]
[404397278,1770102159226,10000.01,8.283e-05,2]
[404397279,1770102159253,10000.01,8.283e-05,2]
[404397280,1770102159281,10000.01,8.283e-05,2]
[404397281,1770102159309,10000.01,8.283e-05,2]
[404397282,1770102182026,300.0,8.282e-05,2]
[404397283,1770102182064,150.0,8.282e-05,2]
[404397284,1770102182103,300.0,8.282e-05,2]
[404397285,1770102184765,200.0,7.835e-05,2]
[404397286,1770102189666,9800.01,7.902e-05,2]
[404397287,1770102189690,10000.01,7.902e-05,2]
[404397288,1770102189719,166.5,7.902e-05,2]
[404397290,1770102200501,166.66,8.09e-05,2]
[404397291,1770102206985,1200.0,8.282e-05,2]
[404397292,1770102235637,8466.85,8.273e-05,2]
[404397293,1770102235660,10000.01,8.273e-05,2]
[404397294,1770102235682,10000.01,8.273e-05,2]
[404397295,1770102235708,10000.01,8.273e-05,2]
[404397296,1770102235730,8532.20881398,8.273e-05,2]
[404397297,1770102241617,300.0,8.282e-05,2]